bitfinex/quotes_SOLUSD_20250630
["timestamp","ask_amount","ask_price","bid_price","bid_amount"]
[1751273677742,2.87076617,149.84,149.81,5.7]
[1751273678126,5.33869926,149.85,149.81,5.7]
[1751273678333,8.20946543,149.85,149.81,5.7]
[1751273682145,5.33831576,149.86,149.81,5.7]
[1751273682332,2.87076617,149.85,149.81,8.57076617]
[1751273684149,5.4380709,149.87,149.82,2.87076617]
[1751273684349,2.87076617,149.86,149.82,2.87076617]
[1751273684654,2.87076617,149.85,149.81,13.91082459]
[1751273684839,2.87076617,149.85,149.81,11.04005842]
[1751273685042,2.87076617,149.85,149.81,13.91082459]
[1751273685950,2.87076617,149.85,149.81,14.11082459]
[1751273686247,2.87076617,149.85,149.81,11.24005842]
[1751273686830,2.87076617,149.85,149.81,14.11082459]
[1751273692248,2.87076617,149.85,149.81,11.24005842]
[1751273692442,2.87076617,149.85,149.81,5.9]
[1751273693563,8.20944106,149.85,149.81,5.9]
[1751273697059,2.87076617,149.84,149.81,5.9]
[1751273697460,2.87076617,149.83,149.81,5.9]
[1751273698049,2.87076617,149.82,149.81,5.9]
[1751273699367,8.21050719,149.82,149.81,5.9]
[1751273699562,8.21050719,149.82,149.81,0.2]
[1751273712582,5.33902829,149.84,149.81,0.2]
[1751273712790,2.87076617,149.83,149.81,0.2]
[1751273714185,8.21033225,149.83,149.81,0.2]
[1751273714590,2.87076617,149.83,149.81,0.2]
[1751273715170,8.20992879,149.84,149.81,0.2]
[1751273715909,2.87076617,149.83,149.81,0.2]
[1751273716983,2.87076617,149.82,149.81,0.2]
[1751273718892,2.87076617,149.83,149.81,0.2]
[1751273722690,0.1,149.84,149.81,0.2]
[1751273723006,2.97076617,149.84,149.81,0.2]
[1751273723204,2.87076617,149.83,149.81,0.2]
[1751273723884,8.30983047,149.84,149.81,0.2]
[1751273725402,5.4390643,149.84,149.81,0.2]
[1751273725606,2.87076617,149.83,149.81,0.2]
[1751273726602,2.87076617,149.82,149.81,0.2]
[1751273727989,8.21050719,149.82,149.81,0.2]
[1751273730704,8.49483033,149.82,149.81,0.2]
[1751273733910,11.97394123,149.82,149.81,0.2]
[1751273735410,30.62359009,149.82,149.81,0.2]
[1751273735609,26.14216157,149.79,149.78,0.2]
[1751273735815,53.14554863,149.79,149.78,0.2]
[1751273750711,34.49589977,149.79,149.78,0.2]
[1751273750905,5.3405962,149.8,149.78,0.2]
[1751273751106,8.21096028,149.81,149.78,0.2]
[1751273751915,11.68975387,149.82,149.78,0.2]
[1751273752224,5.3398768,149.82,149.78,0.2]
[1751273752416,8.21064297,149.82,149.78,0.2]
[1751273753826,9.83117638,149.82,149.78,0.2]
[1751273755135,0.1,149.81,149.78,0.2]
[1751273756025,4.59129958,149.81,149.78,0.2]
[1751273756633,0.1,149.81,149.78,0.2]
[1751273756836,0.1,149.81,149.79,4.49129958]
[1751273760224,0.1,149.81,149.78,12.16296438]
[1751273760533,0.1,149.81,149.79,4.49129958]
[1751273760732,0.1,149.81,149.8,4.49129958]
[1751273760910,0.1,149.81,149.8,6.06559958]
[1751273761611,0.1,149.81,149.8,11.40605351]
[1751273768631,0.1,149.81,149.8,15.89735309]
[1751273768832,0.1,149.81,149.8,11.40605351]
[1751273771619,0.1,149.81,149.8,11.60605351]
[1751273773732,0.1,149.81,149.8,30.25570237]
[1751273773935,0.1,149.81,149.8,28.63715049]
[1751273774119,0.1,149.81,149.8,25.76440279]
[1751273774436,0.1,149.81,149.8,27.7743]
[1751273775736,0.1,149.81,149.8,33.11475393]
[1751273776039,0.1,149.81,149.8,37.60463411]
[1751273776732,0.1,149.81,149.8,32.26418018]
[1751273779745,0.1,149.81,149.8,30.68988018]
[1751273781041,0.1,149.81,149.8,36.03033411]
[1751273788653,0.1,149.81,149.8,54.67998297]
[1751273795734,0.1,149.81,149.8,53.06267312]
[1751273795935,0.1,149.81,149.8,0.2]
[1751273796143,2.97257033,149.81,149.8,0.2]
[1751273797840,4.49183351,149.81,149.8,0.2]
[1751273801941,5.33938463,149.83,149.8,0.2]
[1751273802152,4.49183351,149.81,149.8,0.2]
[1751273805167,4.59183351,149.81,149.8,0.2]
[1751273805762,9.93193096,149.81,149.8,0.2]
[1751273807462,4.59183351,149.81,149.8,0.2]
[1751273807661,0.1,149.81,149.8,0.2]
[1751273817268,0.1,149.81,149.8,5.54045393]
[1751273817457,0.1,149.81,149.8,0.2]
[1751273818653,2.97392748,149.81,149.8,0.2]
[1751273822475,8.31402493,149.81,149.8,0.2]
[1751273823273,2.97392748,149.81,149.8,0.2]
[1751273823782,0.1,149.81,149.8,0.2]
[1751273827689,9.93053724,149.81,149.8,0.2]
[1751273828883,4.59043979,149.81,149.8,0.2]
[1751273845878,2.97450546,149.81,149.8,0.2]
[1751273846583,0.1,149.81,149.8,0.2]
[1751273846784,2.97450546,149.81,149.8,0.2]
[1751273862202,0.1,149.81,149.8,0.2]
[1751273862507,0.1,149.81,149.8,59.22217616]
[1751273862806,0.1,149.84,149.81,18.64964886]
[1751273862987,0.1,149.84,149.83,2.87450546]
[1751273863183,0.1,149.84,149.83,8.65450546]
[1751273863799,0.1,149.84,149.83,16.49401165]
[1751273866716,0.1,149.84,149.83,11.15462702]
[1751273868811,0.1,149.84,149.83,8.65450546]
[1751273871819,0.1,149.84,149.83,5.78]
[1751273872022,0.1,149.84,149.83,8.65450546]
[1751273879028,0.1,149.84,149.83,5.78]
[1751273879219,0.1,149.84,149.83,8.65450546]
[1751273880032,0.1,149.84,149.83,5.78]
[1751273880208,0.1,149.84,149.83,8.65450546]
[1751273882212,0.1,149.84,149.83,5.78]
[1751273882516,8.31353375,149.84,149.81,18.64964886]
[1751273882713,2.87450546,149.82,149.81,18.64964886]
[1751273882913,2.87450546,149.82,149.8,5.94]
[1751273883121,5.43902829,149.84,149.8,0.2]
[1751273883122,8.21460291,149.81,149.8,0.2]
[1751273886308,19.71262475,149.81,149.8,0.2]
[1751273886518,19.99694789,149.81,149.8,0.2]
[1751273886724,19.99694789,149.81,149.78,0.2]
[1751273886916,2.87450546,149.79,149.78,0.2]
[1751273888038,8.21531592,149.79,149.78,0.2]
[1751273890023,8.49963906,149.79,149.78,0.2]
[1751273890817,5.6251336,149.79,149.78,0.2]
[1751273891137,8.49963906,149.79,149.78,0.2]
[1751273894150,8.21531592,149.79,149.78,0.2]
[1751273894746,7.71531592,149.79,149.78,0.2]
[1751273895717,7.99963906,149.79,149.78,0.2]
[1751273896625,8.49963906,149.79,149.78,0.2]
[1751273897533,35.71963906,149.79,149.78,0.2]
[1751273899755,35.71963906,149.79,149.77,0.2]
[1751273899954,175.77450546,149.78,149.77,0.2]
[1751273900749,181.1156725,149.78,149.77,0.2]
[1751273901352,178.24116704,149.78,149.77,0.2]
[1751273901526,208.3556725,149.78,149.77,0.2]
[1751273901836,209.97608707,149.78,149.77,0.2]
[1751273902454,182.73608707,149.78,149.77,0.2]
[1751273903157,177.39492003,149.78,149.77,0.2]
[1751273903456,151.39492003,149.78,149.77,0.2]
[1751273908934,146.9,149.78,149.77,0.2]
[1751273909135,151.39492003,149.78,149.77,0.2]
[1751273914254,156.73608707,149.78,149.77,0.2]
[1751273914757,151.39492003,149.78,149.77,0.2]
[1751273917758,146.9,149.78,149.77,0.2]
[1751273917962,151.39492003,149.78,149.77,0.2]
[1751273918957,146.9,149.78,149.77,0.2]
[1751273919337,151.39492003,149.78,149.77,0.2]
[1751273923767,149.77604843,149.78,149.77,0.2]
[1751273924344,149.87604843,149.78,149.77,0.2]
[1751273925466,0.1,149.78,149.77,0.2]
[1751273925680,0.1,149.78,149.77,27.06722095]
[1751273925965,0.1,149.78,149.77,28.61992095]
[1751273927455,0.1,149.78,149.77,28.90424409]
[1751273927856,0.1,149.78,149.77,30.51786892]
[1751273929353,0.1,149.84,149.81,18.64964886]
[1751273929557,0.1,149.84,149.83,23.13932212]
[1751273929759,0.1,149.84,149.83,18.64964886]
[1751273930674,0.1,149.84,149.83,23.13932212]
[1751273931449,0.1,149.84,149.83,28.47870675]
[1751273934170,0.1,149.84,149.83,23.13932212]
[1751273935647,0.1,149.84,149.83,18.64964886]
[1751273935855,0.1,149.84,149.83,23.13932212]
[1751273936265,0.1,149.84,149.83,18.64964886]
[1751273938361,0.1,149.84,149.82,4.48967326]
[1751273938362,5.43908379,149.84,149.8,30.48967326]
[1751273938675,5.43908379,149.84,149.81,18.64964886]
[1751273938875,9.92875705,149.84,149.81,18.64964886]
[1751273939477,5.43908379,149.84,149.81,18.64964886]
[1751273939671,9.92875705,149.84,149.81,18.64964886]
[1751273940264,4.58967326,149.84,149.81,18.64964886]
[1751273940878,0.1,149.84,149.81,23.13932212]
[1751273941272,0.1,149.84,149.81,18.64964886]
[1751273941472,0.1,149.84,149.81,23.13932212]
[1751273944589,5.43906445,149.84,149.81,18.64964886]
[1751273944884,9.92873771,149.84,149.81,18.64964886]
[1751273946770,4.58967326,149.84,149.81,18.64964886]
[1751273950862,0.1,149.84,149.81,18.64964886]
[1751273952191,0.1,149.84,149.81,21.52306851]
[1751273954891,0.1,149.84,149.83,2.87341965]
[1751273955072,0.1,149.84,149.83,21.52306851]
[1751273955271,0.1,149.84,149.83,18.64964886]
[1751273955472,0.1,149.84,149.83,21.52306851]
[1751273955880,0.1,149.84,149.83,18.64964886]
[1751273956097,0.1,149.84,149.83,21.52306851]
[1751273956664,0.1,149.84,149.83,26.86245314]
[1751273957798,0.1,149.84,149.83,28.47608988]
[1751273964097,0.1,149.84,149.83,23.13670525]
[1751273979797,0.1,149.84,149.83,21.52180828]
[1751273980181,0.1,149.84,149.83,18.64964886]
[1751273980498,0.1,149.84,149.83,21.52180828]
[1751273982406,0.1,149.84,149.83,24.01718003]
[1751273984023,0.1,149.84,149.83,21.14502061]
[1751273986192,0.1,149.84,149.83,18.64964886]
[1751273991626,0.1,149.84,149.83,21.52180828]
[1751274000430,0.1,149.84,149.83,18.64964886]
[1751274000751,0.1,149.84,149.83,27.28180828]
[1751274001526,0.1,149.84,149.83,18.64964886]
[1751274006934,0.1,149.84,149.83,21.52180828]
[1751274010450,0.1,149.84,149.83,24.02104615]
[1751274010927,0.1,149.84,149.83,29.36043078]
[1751274013447,0.1,149.84,149.83,26.86119291]
[1751274016838,0.1,149.85,149.84,18.64964886]
[1751274017239,0.1,149.85,149.84,21.52180828]
[1751274019239,0.1,149.85,149.84,26.86083657]
[1751274022355,0.1,149.85,149.84,53.14515971]
[1751274022659,0.1,149.87,149.86,44.64964886]
[1751274022846,0.1,149.87,149.86,47.52180828]
[1751274023752,0.1,149.87,149.86,52.86012404]
[1751274023937,0.1,149.87,149.86,57.84943289]
[1751274025053,0.1,149.87,149.86,52.86012404]
[1751274027547,0.1,149.87,149.86,44.64964886]
[1751274027752,0.1,149.87,149.86,52.86012404]
[1751274028147,0.1,149.87,149.86,47.52180828]
[1751274030041,0.1,149.87,149.86,52.86012404]
[1751274030543,0.1,149.87,149.86,47.52180828]
[1751274030743,0.1,149.87,149.86,21.52180828]
[1751274031564,0.1,149.87,149.86,18.64964886]
[1751274032056,2.97215942,149.87,149.86,18.64964886]
[1751274032440,8.31011898,149.87,149.83,18.64964886]
[1751274032640,2.87215942,149.86,149.83,18.64964886]
[1751274034842,2.97215942,149.87,149.83,18.64964886]
[1751274035458,2.97215942,149.87,149.83,21.52180828]
[1751274035844,4.58829936,149.87,149.83,23.13794822]
[1751274036144,4.58829936,149.87,149.83,28.47727467]
[1751274039472,0.1,149.87,149.85,18.64964886]
[1751274039971,0.1,149.87,149.85,23.13794822]
[1751274040568,0.1,149.87,149.85,28.47653118]
[1751274042537,0.1,149.87,149.85,23.13794822]
[1751274043066,0.1,149.87,149.86,23.13794822]
[1751274046767,0.1,149.87,149.86,18.64964886]
[1751274050382,6.77244945,149.87,149.86,18.64964886]
[1751274061694,0.1,149.87,149.86,21.52131954]
[1751274061997,0.1,149.87,149.86,18.64964886]
[1751274063500,0.1,149.87,149.86,21.52131954]
[1751274063976,0.1,149.87,149.86,28.19421424]
[1751274064176,0.1,149.87,149.86,18.64964886]
[1751274069296,0.1,149.87,149.86,21.52131954]
[1751274069484,0.1,149.87,149.86,28.19421424]
[1751274069679,0.1,149.87,149.86,28.47853738]
[1751274070200,0.1,149.87,149.86,39.9652201]
[1751274070504,0.1,149.88,149.87,18.933972]
[1751274070680,0.1,149.88,149.87,59.2923254]
[1751274071491,0.1,149.88,149.87,65.96477485]
[1751274071880,0.1,149.88,149.87,60.57339667]
[1751274077617,0.1,149.88,149.87,56.08990906]
[1751274077822,0.1,149.88,149.87,51.32209831]
[1751274077987,0.1,149.88,149.87,55.80558592]
[1751274084615,0.1,149.88,149.87,23.13313647]
[1751274084918,0.1,149.88,149.87,18.64964886]
[1751274086906,0.1,149.88,149.85,0.2]
[1751274086907,0.1,149.88,149.85,25.52279149]
[1751274087114,0.1,149.88,149.85,30.0062791]
[1751274087304,4.58348761,149.88,149.85,18.84964886]
[1751274087545,4.58348761,149.88,149.85,25.52289669]
[1751274088935,0.1,149.88,149.85,25.52289669]
[1751274089136,0.1,149.88,149.85,30.0063843]
[1751274091246,0.1,149.88,149.85,23.33313647]
[1751274093039,0.1,149.88,149.85,30.00638061]
[1751274098854,0.1,149.88,149.87,23.13313647]
[1751274100362,0.1,149.88,149.87,29.80558592]
[1751274100732,0.1,149.88,149.87,25.32209831]
[1751274100936,0.1,149.88,149.87,29.80558592]
[1751274104149,0.1,149.88,149.87,18.64964886]
[1751274106244,0.1,149.88,149.86,18.64964886]
[1751274106431,0.1,149.88,149.86,23.13313647]
[1751274107459,0.1,149.88,149.86,29.80598226]
[1751274107967,0.1,149.88,149.86,23.13313647]
[1751274108143,0.1,149.88,149.87,4.48348761]
[1751274112658,0.1,149.88,149.86,29.80591909]
[1751274112865,0.1,149.88,149.87,4.48348761]
[1751274114059,0.1,149.88,149.87,29.80558592]
[1751274115355,0.1,149.88,149.87,34.28907353]
[1751274116353,0.1,149.88,149.87,29.80558592]
[1751274117741,0.1,149.88,149.87,34.28907353]
[1751274118855,0.1,149.88,149.87,29.80558592]
[1751274119061,0.1,149.88,149.87,34.28907353]
[1751274121769,0.1,149.88,149.87,29.80558592]
[1751274123475,0.1,149.88,149.87,25.32209831]
[1751274123672,0.1,149.88,149.87,23.13313647]
[1751274123875,0.1,149.88,149.87,18.64964886]
[1751274124058,11.25549188,149.88,149.85,0.2]
[1751274124371,4.48348761,149.87,149.85,0.2]
[1751274124579,4.48348761,149.87,149.85,18.84964886]
[1751274125279,11.15610615,149.87,149.85,18.84964886]
[1751274127666,11.15610615,149.87,149.85,0.2]
[1751274136468,6.67261854,149.87,149.85,0.2]
[1751274136783,11.15610615,149.87,149.85,0.2]
[1751274141791,9.54519124,149.87,149.85,0.2]
[1751274145603,6.67261854,149.87,149.85,0.2]
[1751274145774,9.54519124,149.87,149.85,0.2]
[1751274149601,2.8725727,149.86,149.85,0.2]
[1751274150299,9.5454674,149.86,149.85,0.2]
[1751274157911,9.82979054,149.86,149.85,0.2]
[1751274160317,36.84979054,149.86,149.85,0.2]
[1751274164718,9.5454674,149.86,149.85,0.2]
[1751274172604,9.82979054,149.86,149.85,0.2]
[1751274173004,35.82979054,149.86,149.85,0.2]
[1751274173204,9.82979054,149.86,149.85,0.2]
[1751274174003,34.0833,149.84,149.83,0.2]
[1751274174210,62.22184631,149.84,149.81,0.2]
[1751274174425,3.15689584,149.82,149.81,0.2]
[1751274175324,3.99123037,149.82,149.81,0.2]
[1751274175944,5.61327054,149.82,149.81,0.2]
[1751274176108,12.28794681,149.82,149.81,0.2]
[1751274178110,11.45361228,149.82,149.81,0.2]
[1751274184037,11.16928914,149.82,149.81,0.2]
[1751274189058,16.68239564,149.86,149.81,4.69461287]
[1751274189222,6.67334,149.85,149.82,4.49461287]
[1751274189425,6.67305847,149.86,149.82,4.49461287]
[1751274189622,11.16767134,149.86,149.82,4.49461287]
[1751274190144,6.67305847,149.86,149.82,4.49461287]
[1751274191159,146.9,149.85,149.82,4.49461287]
[1751274191754,146.9,149.85,149.83,4.49461287]
[1751274193546,0.1,149.87,149.84,23.14426173]
[1751274194229,6.77245757,149.87,149.84,23.14426173]
[1751274195148,6.77245757,149.87,149.84,22.53387473]
[1751274195341,6.77245757,149.87,149.84,23.14426173]
[1751274196357,11.26707044,149.87,149.84,18.64964886]
[1751274197947,4.49461287,149.86,149.82,1.5404]
[1751274198156,4.49461287,149.86,149.82,6.03501287]
[1751274199060,4.49461287,149.85,149.81,23.34426173]
[1751274199367,4.49461287,149.85,149.81,18.84964886]
[1751274200052,6.67378537,149.84,149.81,18.84964886]
[1751274201262,11.16839824,149.84,149.81,0.2]
[1751274201968,4.49461287,149.83,149.81,0.2]
[1751274202270,11.16910834,149.83,149.81,0.2]
[1751274203766,4.49461287,149.82,149.81,0.2]
[1751274204349,11.16910834,149.83,149.81,0.2]
[1751274205261,4.49461287,149.82,149.81,0.2]
[1751274205964,11.16928914,149.82,149.81,0.2]
[1751274207467,4.49461287,149.82,149.81,0.2]
[1751274208490,4.77893601,149.82,149.81,0.2]
[1751274208647,30.77893601,149.82,149.81,0.2]
[1751274209352,64.47361228,149.82,149.81,0.2]
[1751274209675,64.47361228,149.82,149.79,0.2]
[1751274209676,76.66412515,149.82,149.79,0.2]
[1751274209892,35.27354888,149.8,149.79,0.2]
[1751274210101,4.77893601,149.79,149.78,0.2]
[1751274210405,57.79893601,149.79,149.78,0.2]
[1751274211798,64.47494909,149.79,149.78,0.2]
[1751274212796,65.30945072,149.79,149.78,0.2]
[1751274219397,68.78952806,149.79,149.78,0.2]
[1751274227910,69.28952806,149.79,149.78,0.2]
[1751274230298,87.93917692,149.79,149.77,0.2]
[1751274230507,4.77893601,149.78,149.77,0.2]
[1751274231022,4.77893601,149.78,149.76,0.2]
[1751274231023,26.28432314,149.77,149.76,0.2]
[1751274231198,57.81893601,149.77,149.76,0.2]
[1751274231895,18.933972,149.76,149.67,6.0581]
[1751274232096,36.31354888,149.75,149.65,11.81781287]
[1751274232315,42.9913452,149.75,149.65,11.81781287]
[1751274233020,46.37633768,149.75,149.65,11.81781287]
[1751274233228,75.02598654,149.75,149.65,11.81781287]
[1751274233397,9.27354888,149.74,149.65,7.3232]
[1751274233719,9.27354888,149.74,149.65,11.81781287]
[1751274234615,15.95179116,149.74,149.65,11.81781287]
[1751274235120,15.95179116,149.74,149.65,7.3232]
[1751274235321,15.95179116,149.74,149.65,11.81781287]
[1751274236724,15.95179116,149.74,149.65,7.3232]
[1751274237106,15.95179116,149.74,149.65,11.81781287]
[1751274237614,38.49717829,149.74,149.67,4.49461287]
[1751274237923,34.00256542,149.74,149.68,4.49461287]
[1751274238124,38.49717829,149.74,149.68,4.49461287]
[1751274238431,11.45717829,149.74,149.68,4.49461287]
[1751274238623,38.49717829,149.74,149.68,4.49461287]
[1751274239619,67.97813549,149.74,149.68,4.49461287]
[1751274239821,67.97813549,149.74,149.67,0.2]
[1751274240126,67.97813549,149.74,149.67,4.69461287]
[1751274240422,67.97813549,149.74,149.67,0.2]
[1751274240609,67.97813549,149.74,149.67,4.69461287]
[1751274241530,67.97813549,149.74,149.68,4.49461287]
[1751274241704,36.15919948,149.74,149.71,1.6491]
[1751274241907,40.65381235,149.74,149.71,1.6491]
[1751274248434,67.69381235,149.74,149.71,1.6491]
[1751274248938,67.97813549,149.74,149.68,6.1323]
[1751274255434,67.97813549,149.74,149.68,10.62691287]
[1751274255633,67.69381235,149.74,149.68,10.62691287]
[1751274256147,63.19919948,149.74,149.68,10.62691287]
[1751274256356,67.69381235,149.74,149.68,10.62691287]
[1751274257749,67.69381235,149.74,149.68,18.64964886]
[1751274257944,67.69381235,149.74,149.68,23.14426173]
[1751274261751,40.65381235,149.74,149.68,23.14426173]
[1751274263754,37.17285515,149.74,149.69,4.49461287]
[1751274269958,6.67735042,149.76,149.72,4.69461287]
[1751274270568,11.17196329,149.76,149.72,0.2]
[1751274270859,4.49461287,149.75,149.72,0.2]
[1751274272254,6.67824228,149.74,149.72,0.2]
[1751274273855,11.17240919,149.75,149.72,0.2]
[1751274275735,6.67779632,149.75,149.72,0.2]
[1751274275935,11.17240919,149.75,149.72,0.2]
[1751274279244,11.27240919,149.75,149.72,0.2]
[1751274279858,9.65516527,149.75,149.72,0.2]
[1751274281253,6.77779632,149.75,149.72,3.07736895]
[1751274282058,6.77779632,149.75,149.72,0.2]
[1751274285266,9.65516527,149.75,149.72,0.2]
[1751274285658,0.5,149.74,149.72,0.2]
[1751274287846,7.17824228,149.74,149.72,0.2]
[1751274292776,7.17824228,149.74,149.72,3.07736895]
[1751274293075,7.17824228,149.74,149.72,0.2]
[1751274293278,7.17824228,149.74,149.72,3.07736895]
[1751274293479,7.17824228,149.74,149.72,0.2]
[1751274301687,7.17824228,149.74,149.72,3.07736895]
[1751274302082,0.5,149.74,149.72,3.07736895]
[1751274302281,0.1,149.75,149.73,3.07736895]
[1751274302496,6.77790329,149.75,149.73,0.2]
[1751274304673,0.1,149.75,149.73,0.2]
[1751274304896,0.1,149.75,149.74,2.87736895]
[1751274306111,0.1,149.75,149.74,21.52701781]
[1751274306769,0.1,149.75,149.74,28.20526009]
[1751274307718,0.1,149.75,149.74,18.64964886]
[1751274308086,0.1,149.75,149.74,21.52701781]
[1751274309008,0.1,149.75,149.74,28.20526009]
[1751274309600,0.1,149.75,149.74,30.70148545]
[1751274313429,0.1,149.75,149.74,27.8241165]
[1751274313715,0.1,149.75,149.74,30.70148545]
[1751274314109,0.1,149.75,149.74,28.20526009]
[1751274314689,0.1,149.8,149.74,28.20526009]
[1751274314928,0.1,149.8,149.78,2.87736895]
[1751274315612,0.1,149.8,149.79,2.87736895]
[1751274317429,0.1,149.8,149.78,21.52701781]
[1751274317743,9.65306801,149.8,149.76,4.41946895]
[1751274319733,6.77569906,149.8,149.77,2.87736895]
[1751274319900,0.1,149.8,149.77,2.87736895]
[1751274320099,0.1,149.8,149.79,2.87736895]
[1751274320522,0.1,149.8,149.78,2.87736895]
[1751274321938,0.1,149.8,149.79,2.87736895]
[1751274323239,0.1,149.8,149.79,21.52701781]
[1751274325539,0.1,149.8,149.79,28.20303089]
[1751274326619,0.1,149.8,149.79,21.52701781]
[1751274329133,0.1,149.8,149.79,28.20303089]
[1751274330543,0.1,149.8,149.79,25.32566194]
[1751274330725,0.1,149.8,149.79,28.20303089]
[1751274332736,0.1,149.8,149.79,21.52701781]
[1751274332918,0.1,149.8,149.79,18.64964886]
[1751274333120,0.1,149.8,149.79,21.52701781]
[1751274333550,0.1,149.8,149.79,18.64964886]
[1751274335133,6.77564705,149.8,149.76,28.87736895]
[1751274335456,0.1,149.8,149.77,21.52701781]
[1751274335624,0.1,149.8,149.78,2.87736895]
[1751274336734,0.1,149.8,149.77,21.52701781]
[1751274337157,0.1,149.8,149.77,28.2039149]
[1751274337848,0.1,149.8,149.77,21.52701781]
[1751274339472,0.1,149.8,149.78,2.87736895]
[1751274343444,0.1,149.8,149.79,21.52701781]
[1751274345945,0.1,149.8,149.79,28.20303089]
[1751274346950,0.1,149.8,149.79,21.52701781]
[1751274347159,0.1,149.8,149.79,18.64964886]
[1751274347545,0.1,149.8,149.78,18.64964886]
[1751274347843,0.1,149.8,149.78,21.52701781]
[1751274349069,0.1,149.8,149.79,21.52701781]
[1751274349768,0.1,149.8,149.79,23.14017872]
[1751274350676,0.1,149.8,149.78,4.49052986]
[1751274352672,0.1,149.8,149.77,4.49052986]
[1751274352881,0.1,149.8,149.77,23.14017872]
[1751274353178,0.1,149.8,149.79,4.49052986]
[1751274355360,0.1,149.8,149.79,11.16654294]
[1751274361272,0.1,149.8,149.79,29.8161918]
[1751274369799,0.1,149.8,149.79,28.1990984]
[1751274370203,0.1,149.8,149.79,33.8990984]
[1751274374505,0.1,149.81,149.8,18.64964886]
[1751274374801,0.1,149.81,149.8,33.01683116]
[1751274375805,0.1,149.81,149.8,39.69239858]
[1751274382700,0.1,149.81,149.8,25.32521628]
[1751274382909,0.1,149.81,149.8,39.69239858]
[1751274383810,0.1,149.81,149.8,28.19865274]
[1751274384304,0.1,149.81,149.8,39.69239858]
[1751274384505,0.1,149.85,149.8,39.69239858]
[1751274384506,0.1,149.85,149.83,2.87343646]
[1751274384905,0.1,149.85,149.83,18.64964886]
[1751274385311,9.64681956,149.85,149.81,2.87343646]
[1751274388314,2.87343646,149.83,149.8,18.64964886]
[1751274388497,10.97083646,149.84,149.8,18.64964886]
[1751274389500,10.97083646,149.84,149.8,21.52308532]
[1751274389895,10.97083646,149.84,149.8,18.64964886]
[1751274390224,17.64493002,149.84,149.8,18.64964886]
[1751274390721,2.87343646,149.83,149.79,8.57343646]
[1751274392302,9.54806691,149.83,149.79,8.57343646]
[1751274393521,2.87343646,149.82,149.79,5.7]
[1751274394016,2.87343646,149.81,149.79,5.7]
[1751274394199,2.87343646,149.8,149.79,5.7]
[1751274394399,153.57463045,149.83,149.79,5.7]
[1751274394400,2.87343646,149.81,149.79,5.7]
[1751274395503,9.54859922,149.81,149.79,5.7]
[1751274397024,2.87343646,149.8,149.79,5.7]
[1751274397324,2.87343646,149.8,149.78,0.2]
[1751274397495,9.54944954,149.79,149.78,0.2]
[1751274397699,11.14404954,149.79,149.78,0.2]
[1751274399823,12.76430446,149.79,149.78,0.2]
[1751274400022,6.0921,149.8,149.78,0.2]
[1751274400318,0.1,149.82,149.79,4.49369138]
[1751274400623,0.1,149.82,149.81,4.49369138]
[1751274401308,0.1,149.82,149.8,4.49369138]
[1751274404009,0.1,149.82,149.79,11.16968412]
[1751274404627,0.1,149.82,149.78,6.87626055]
[1751274404813,0.1,149.82,149.79,4.49369138]
[1751274407512,0.1,149.82,149.79,11.16952257]
[1751274408016,0.1,149.82,149.79,4.49369138]
[1751274409928,0.1,149.82,149.79,11.16964]
[1751274410519,7.0591047,149.82,149.78,0.2]
[1751274410828,4.49369138,149.79,149.78,0.2]
[1751274411023,11.16970446,149.79,149.78,0.2]
[1751274423622,147.0,149.82,149.78,0.2]
[1751274423825,147.0,149.82,149.79,23.14334024]
[1751274424350,147.0,149.82,149.78,6.87636097]
[1751274424351,147.0,149.82,149.81,23.14334024]